fUSD/lending_fUSD_20240521
["ID","MTS","AMOUNT","RATE_DAILY","PERIOD"]
[327650754,1716281438934,-1000.0,0.00033445,2]
[327650755,1716281438943,-1000.0,0.00033445,2]
[327650756,1716281438953,-1000.0,0.00033445,2]
[327650757,1716281438963,-1000.0,0.00033445,2]
[327650758,1716281438973,-1000.0,0.00033445,2]
[327650759,1716281438982,-1000.0,0.00033445,2]
[327650760,1716281438991,-1000.0,0.00033445,2]
[327650761,1716281439001,-1000.0,0.00033445,2]
[327650762,1716281439011,-1000.0,0.00033445,2]
[327650763,1716281439022,-1000.0,0.00033445,2]
[327650764,1716281439032,-1000.0,0.00033445,2]
[327650765,1716281439042,-1000.0,0.00033445,2]
[327650766,1716281439052,-1000.0,0.00033445,2]
[327650767,1716281439061,-1000.0,0.00033445,2]
[327650768,1716281439071,-1000.0,0.00033445,2]
[327650769,1716281439081,-1000.0,0.00033445,2]
[327650770,1716281439090,-1000.0,0.00033445,2]
[327650771,1716281439101,-1000.0,0.00033445,2]
[327650772,1716281439111,-541.15213887,0.00033445,2]
[327650773,1716281439125,-458.84786113,0.00033445,2]
[327650774,1716281439135,-1000.0,0.00033445,2]
[327650775,1716281439145,-1000.0,0.00033445,2]
[327650776,1716281439155,-1000.0,0.00033445,2]
[327650777,1716281439165,-1000.0,0.00033445,2]
[327650778,1716281439174,-1000.0,0.00033445,2]
[327650779,1716281439184,-1000.0,0.00033445,2]
[327650780,1716281439194,-1000.0,0.00033445,2]
[327650781,1716281439204,-1000.0,0.00033445,2]
[327650782,1716281439213,-1000.0,0.00033445,2]
[327650783,1716281439223,-1000.0,0.00033445,2]
[327650784,1716281439233,-1000.0,0.00033445,2]
[327650785,1716281439242,-675.0,0.00033445,2]
[327650786,1716281439252,-500.0,0.00033445,6]
[327650787,1716281439261,-508.50390491,0.00033445,6]
[327650788,1716281439275,-500.0,0.00033445,6]
[327650789,1716281439285,-500.0,0.00033445,6]
[327650790,1716281439295,-500.0,0.00033445,6]
[327650791,1716281439304,-500.0,0.00033445,6]
[327650793,1716281439315,-500.0,0.00033445,6]
[327650795,1716281439324,-500.0,0.00033445,6]
[327650797,1716281439334,-370.64940897,0.00033445,6]
[327650799,1716281439343,-500.0,0.00033445,6]
[327650801,1716281439353,-500.0,0.00033445,6]
[327650803,1716281439362,-402.15044984,0.00033445,6]
[327650811,1716281441830,-97.84955016,0.00033445,6]
[327650812,1716281441840,-490.98044984,0.00033445,6]
[327650824,1716281442769,-893.71241274,0.00032956,2]
[327650825,1716281442793,-693.44964409,0.00032956,2]
[327650826,1716281442804,-1886.97794317,0.00032956,2]
[327650827,1716281442813,-159.53,0.00033204,2]
[327650828,1716281442822,-9.01955016,0.00033445,6]
[327650829,1716281442832,-169.2942257,0.00033445,6]
[327650830,1716281442964,-49.74503938,0.00033445,6]
[327650831,1716281442976,-280.96073492,0.00033445,6]
[327650832,1716281442986,-500.0,0.00033445,6]
[327650833,1716281442996,-500.0,0.00033445,6]
[327650834,1716281443007,-500.0,0.00033445,6]
[327650835,1716281443019,-500.0,0.00033445,6]
[327650836,1716281443029,-500.0,0.00033445,6]
[327650837,1716281443039,-500.0,0.00033445,6]
[327650838,1716281443052,-500.0,0.00033445,6]
[327650839,1716281443063,-500.0,0.00033445,6]
[327650840,1716281443073,-500.0,0.00033445,6]
[327650841,1716281443084,-288.12597881,0.00033445,6]
[327650842,1716281443094,-500.0,0.00033445,6]
[327650843,1716281443104,-500.0,0.00033445,6]
[327650844,1716281443115,-500.0,0.00033445,6]
[327650845,1716281443124,-500.0,0.00033445,6]
[327650846,1716281443135,-500.0,0.00033445,6]
[327650847,1716281443146,-500.0,0.00033445,6]
[327650848,1716281443156,-502.23,0.00033445,6]
[327650849,1716281443166,-500.0,0.00033445,6]
[327650850,1716281443176,-500.0,0.00033445,6]
[327650851,1716281443185,-500.0,0.00033445,6]
[327650852,1716281443195,-500.0,0.00033445,6]
[327650853,1716281443206,-500.0,0.00033445,6]
[327650854,1716281443217,-500.0,0.00033445,6]
[327650855,1716281443228,-500.0,0.00033445,6]
[327650856,1716281443241,-500.0,0.00033445,6]
[327650857,1716281443251,-500.0,0.00033445,6]
[327650858,1716281443261,-500.0,0.00033445,6]
[327650859,1716281443272,-335.45888509,0.00033445,6]
[327650860,1716281443282,-500.0,0.00033445,6]
[327650862,1716281443291,-500.0,0.00033445,6]
[327650863,1716281443302,-500.0,0.00033445,6]
[327650864,1716281443312,-500.0,0.00033445,6]
[327650865,1716281443321,-500.0,0.00033445,6]
[327650866,1716281443331,-500.0,0.00033445,6]
[327650867,1716281443342,-510.41654124,0.00033445,6]
[327650868,1716281443352,-509.5421978,0.00033445,6]
[327650869,1716281443361,-2047.65326289,0.00033445,6]
[327650870,1716281443371,-500.0,0.00033445,6]
[327650871,1716281443380,-487.0,0.00033445,6]
[327650872,1716281443390,-387.15767216,0.00033445,6]
[327650873,1716281443399,-153.58,0.000335,2]
[327650874,1716281443410,-153.58,0.000335,2]
[327650875,1716281443420,-153.58,0.000335,2]
[327650876,1716281443429,-153.58,0.000335,2]
[327650877,1716281443439,-153.58,0.000335,2]
[327650879,1716281443449,-556.5,0.00033554,6]
[327650881,1716281443459,-500.0,0.00033554,6]
[327650883,1716281443468,-526.88,0.00033554,6]
[327650885,1716281443477,-500.0,0.00033554,6]
[327650886,1716281443487,-1273.7,0.00033554,6]
[327650887,1716281443497,-500.0,0.00033555,6]
[327650889,1716281443507,-500.0,0.00033555,6]
[327650890,1716281443517,-500.0,0.00033555,6]
[327650891,1716281443527,-500.0,0.00033555,6]
[327650892,1716281443536,-500.0,0.00033555,6]
[327650893,1716281443545,-500.0,0.00033555,6]
[327650894,1716281443556,-500.0,0.00033555,6]
[327650895,1716281443567,-500.0,0.00033555,6]
[327650896,1716281443577,-500.0,0.00033555,6]
[327650897,1716281443586,-500.0,0.00033555,6]
[327650898,1716281443596,-500.0,0.00033555,6]
[327650899,1716281443606,-612.43,0.00033555,6]
[327650900,1716281443617,-500.0,0.00033555,6]
[327650901,1716281443628,-500.0,0.00033555,6]
[327650902,1716281443638,-500.0,0.00033555,6]
[327650903,1716281443647,-500.0,0.00033555,6]
[327650904,1716281443658,-500.0,0.00033555,6]
[327650905,1716281443667,-500.0,0.00033555,6]
[327650906,1716281443676,-500.0,0.00033555,6]
[327650907,1716281443686,-360.88,0.00033555,6]
[327650908,1716281443698,-571.7,0.00033555,6]
[327650909,1716281443708,-322.63,0.00033555,6]
[327650910,1716281443718,-436.16,0.00033555,6]
[327650911,1716281443727,-414.83,0.00033555,6]
[327650912,1716281443738,-222.21,0.00033555,6]
[327650913,1716281443749,-497.96,0.00033555,6]
[327650914,1716281443759,-500.0,0.00033555,6]
[327650915,1716281443770,-500.0,0.00033555,6]
[327650916,1716281443779,-500.0,0.00033555,6]
[327650917,1716281443789,-7201.45,0.00033633,5]
[327650918,1716281443799,-169.35,0.00033663,6]
[327650919,1716281443809,-600.99,0.00033663,6]
[327650920,1716281443818,-1273.7,0.00033663,6]
[327650921,1716281443828,-500.0,0.00033664,6]
[327650922,1716281443838,-500.0,0.00033664,6]
[327650923,1716281443848,-500.0,0.00033664,6]
[327650924,1716281443857,-223.55,0.00033664,6]
[327650925,1716281443866,-500.0,0.00033664,6]
[327650926,1716281443876,-500.0,0.00033664,6]
[327650927,1716281443886,-500.0,0.00033664,6]
[327650928,1716281443896,-500.0,0.00033664,6]
[327650929,1716281443905,-500.0,0.00033664,6]
[327650930,1716281443915,-500.0,0.00033664,6]
[327650931,1716281443925,-500.0,0.00033664,6]
[327650932,1716281443934,-500.0,0.00033664,6]
[327650933,1716281443943,-500.0,0.00033664,6]
[327650934,1716281443953,-500.0,0.00033664,6]
[327650935,1716281443962,-500.0,0.00033664,6]
[327650936,1716281443972,-500.0,0.00033664,6]
[327650937,1716281443981,-500.0,0.00033664,6]
[327650938,1716281443991,-500.0,0.00033664,6]
[327650939,1716281444000,-154.56,0.00033664,6]
[327650940,1716281444009,-340.89,0.00033664,6]
[327650941,1716281444020,-548.42,0.00033664,6]
[327650942,1716281444029,-1161.38032203,0.00033665,30]
[327650943,1716281444039,-167.47819089,0.00033684,2]
[327650944,1716281444048,-150.0,0.00033706,2]
[327650945,1716281444057,-1273.7,0.00033773,6]
[327650946,1716281444067,-150.0,0.00033773,2]
[327650947,1716281444076,-500.0,0.00033774,6]
[327650948,1716281444085,-500.0,0.00033774,6]
[327650949,1716281444095,-500.0,0.00033774,6]
[327650950,1716281444105,-317.01,0.00033774,6]
[327650951,1716281444115,-500.0,0.00033774,6]
[327650952,1716281444124,-500.0,0.00033774,6]
[327650953,1716281444134,-500.0,0.00033774,6]
[327650954,1716281444143,-500.0,0.00033774,6]
[327650955,1716281444153,-500.0,0.00033774,6]
[327650956,1716281444163,-178.18,0.00033774,6]
[327650957,1716281444172,-500.0,0.00033774,6]
[327650958,1716281444182,-500.0,0.00033774,6]
[327650959,1716281444191,-500.0,0.00033774,6]
[327650960,1716281444201,-500.0,0.00033774,6]
[327650961,1716281444211,-500.0,0.00033774,6]
[327650962,1716281444220,-500.0,0.00033774,6]
[327650963,1716281444230,-500.0,0.00033774,6]
[327650964,1716281444239,-1273.7,0.00033883,6]
[327650965,1716281444249,-479.64,0.00033884,6]
[327650966,1716281444260,-500.0,0.00033884,6]
[327650967,1716281444271,-500.0,0.00033884,6]
[327650968,1716281444281,-500.0,0.00033884,6]
[327650969,1716281444290,-307.64509706,0.00033884,6]
[327650970,1716281444299,-500.0,0.00033884,6]
[327650971,1716281444309,-493.01,0.00033884,6]
[327650972,1716281444318,-422.75,0.00033884,6]
[327650973,1716281444328,-500.0,0.00033884,6]
[327650974,1716281444338,-500.0,0.00033884,6]
[327650975,1716281444347,-500.0,0.00033884,6]
[327650976,1716281444357,-500.0,0.00033884,6]
[327650977,1716281444366,-500.0,0.00033884,6]
[327650978,1716281444376,-494.86,0.00033884,6]
[327650979,1716281444386,-609.23,0.00033884,6]
[327650980,1716281444396,-2805.17528404,0.00033884,4]
[327650981,1716281444406,-5736.1173127,0.000339,2]
[327650982,1716281444415,-1273.7,0.00033992,6]
[327650983,1716281444425,-500.0,0.00033993,6]
[327650984,1716281444435,-500.0,0.00033993,6]
[327650985,1716281444445,-500.0,0.00033993,6]
[327650986,1716281444455,-500.0,0.00033993,6]
[327650987,1716281444464,-291.35,0.00033993,6]
[327650988,1716281444474,-507.06,0.00033993,6]
[327650989,1716281444484,-292.63,0.00033993,6]
[327650990,1716281444493,-500.0,0.00033993,6]
[327650991,1716281444503,-500.0,0.00033993,6]
[327650992,1716281444513,-153.67101316,0.00034003,7]
[327650993,1716281444524,-167.47819089,0.00034023,2]
[327650994,1716281444534,-299.39002,0.00034063,7]
[327650995,1716281444543,-984.57,0.00034091,2]
[327650996,1716281444552,-153.32,0.00034093,2]
[327650997,1716281444562,-1273.7,0.00034102,6]
[327650998,1716281444572,-500.0,0.00034103,6]
[327650999,1716281444582,-500.0,0.00034103,6]
[327651000,1716281444592,-500.0,0.00034103,6]
[327651001,1716281444601,-500.0,0.00034103,6]
[327651002,1716281444616,-456.15,0.00034103,6]
[327651003,1716281444626,-157.37,0.00034103,6]
[327651004,1716281444635,-613.84,0.00034103,6]
[327651005,1716281444648,-500.0,0.00034103,6]
[327651006,1716281444657,-500.0,0.00034103,6]
[327651007,1716281444667,-717.55,0.00034103,6]
[327651008,1716281444677,-500.0,0.00034103,6]
[327651009,1716281444687,-500.0,0.00034103,6]
[327651010,1716281444698,-195.79,0.00034103,6]
[327651011,1716281444708,-500.0,0.00034103,6]
[327651012,1716281444718,-500.0,0.00034103,6]
[327651013,1716281444728,-500.0,0.00034103,6]
[327651014,1716281444738,-500.0,0.00034103,6]
[327651015,1716281444750,-500.0,0.00034103,6]
[327651016,1716281444760,-508.46312574,0.00034103,6]
[327651017,1716281444771,-500.0,0.00034103,6]
[327651018,1716281444780,-500.0,0.00034103,6]
[327651019,1716281444789,-500.0,0.00034103,6]
[327651020,1716281444800,-604.53,0.00034103,6]
[327651021,1716281444809,-500.0,0.00034103,6]
[327651022,1716281444819,-36442.83,0.00034103,6]
[327651023,1716281444829,-125.77636458,0.00034104,6]
[327651024,1716281444838,-500.0,0.00034104,6]
[327651025,1716281444848,-500.0,0.00034104,6]
[327651026,1716281444857,-506.31241506,0.00034104,6]
[327651027,1716281444866,-513.29103904,0.00034104,6]
[327651028,1716281444876,-500.0,0.00034104,6]
[327651029,1716281444885,-500.0,0.00034104,6]
[327651030,1716281444895,-500.0,0.00034104,6]
[327651031,1716281444904,-500.0,0.00034104,6]
[327651032,1716281444915,-500.0,0.00034104,6]
[327651033,1716281444924,-500.0,0.00034104,6]
[327651034,1716281444943,-501.37463282,0.00034104,6]
[327651035,1716281444954,-500.0,0.00034104,6]
[327651036,1716281444964,-500.0,0.00034104,6]
[327651037,1716281444974,-500.0,0.00034104,6]
[327651038,1716281444984,-500.0,0.00034104,6]
[327651039,1716281444993,-500.0,0.00034104,6]
[327651040,1716281445003,-500.0,0.00034104,6]
[327651041,1716281445013,-500.0,0.00034104,6]
[327651042,1716281445024,-500.0,0.00034104,6]
[327651043,1716281445034,-500.0,0.00034104,6]
[327651044,1716281445044,-500.0,0.00034104,6]
[327651045,1716281445054,-500.0,0.00034104,6]
[327651046,1716281445065,-509.20706774,0.00034104,6]
[327651047,1716281445075,-500.0,0.00034104,6]
[327651048,1716281445084,-551.91,0.00034104,6]
[327651049,1716281445094,-500.0,0.00034104,6]
[327651050,1716281445104,-500.0,0.00034104,6]
[327651051,1716281445114,-500.0,0.00034104,6]
[327651052,1716281445124,-227.14,0.00034104,6]
[327651053,1716281445134,-500.0,0.00034104,6]
[327651054,1716281445143,-601.86,0.00034104,6]
[327651055,1716281445153,-500.0,0.00034104,6]
[327651056,1716281445163,-500.0,0.00034104,6]
[327651057,1716281445174,-500.0,0.00034104,6]
[327651058,1716281445184,-286.94,0.00034104,6]
[327651059,1716281445194,-500.0,0.00034104,6]
[327651060,1716281445204,-500.0,0.00034104,6]
[327651061,1716281445214,-500.0,0.00034104,6]
[327651065,1716281445528,-500.0,0.00034104,6]
[327651066,1716281445538,-500.0,0.00034104,6]
[327651067,1716281445549,-500.0,0.00034104,6]
[327651068,1716281445559,-500.0,0.00034104,6]
[327651069,1716281445569,-487.24826644,0.00034104,6]
[327651070,1716281445579,-500.0,0.00034104,6]
[327651071,1716281445590,-500.0,0.00034104,6]
[327651072,1716281445599,-500.0,0.00034104,6]
[327651073,1716281445610,-500.0,0.00034104,6]
[327651074,1716281445622,-500.0,0.00034104,6]
[327651075,1716281445631,-500.0,0.00034104,6]
[327651076,1716281445641,-500.0,0.00034104,6]
[327651077,1716281445651,-500.0,0.00034104,6]
[327651078,1716281445662,-500.0,0.00034104,6]
[327651079,1716281445672,-502.93253712,0.00034104,6]
[327651080,1716281445682,-500.0,0.00034104,6]
[327651081,1716281445691,-500.0,0.00034104,6]
[327651082,1716281445703,-500.0,0.00034104,6]
[327651083,1716281445712,-500.0,0.00034104,6]
[327651084,1716281445722,-507.05563422,0.00034104,6]
[327651085,1716281445731,-500.0,0.00034104,6]
[327651086,1716281445742,-500.0,0.00034104,6]
[327651087,1716281445751,-500.0,0.00034104,6]
[327651088,1716281445761,-530.10778116,0.00034104,6]
[327651089,1716281445772,-500.0,0.00034104,6]
[327651090,1716281445782,-500.0,0.00034104,6]
[327651091,1716281445793,-500.0,0.00034104,6]
[327651092,1716281445802,-500.0,0.00034104,6]
[327651093,1716281445812,-500.0,0.00034104,6]
[327651094,1716281445821,-500.0,0.00034104,6]
[327651095,1716281445830,-500.0,0.00034104,6]
[327651096,1716281445840,-502.65265391,0.00034104,6]
[327651097,1716281445850,-500.0,0.00034104,6]
[327651098,1716281445860,-500.0,0.00034104,6]
[327651099,1716281445868,-500.0,0.00034104,6]
[327651100,1716281445878,-500.0,0.00034104,6]
[327651101,1716281445888,-500.0,0.00034104,6]
[327651102,1716281445898,-500.0,0.00034104,6]
[327651103,1716281445912,-500.0,0.00034104,6]
[327651104,1716281445923,-500.0,0.00034104,6]
[327651105,1716281445933,-500.0,0.00034104,6]
[327651106,1716281445943,-500.0,0.00034104,6]
[327651107,1716281445953,-500.0,0.00034104,6]
[327651108,1716281445964,-504.72124756,0.00034104,6]
[327651109,1716281445974,-500.0,0.00034104,6]
[327651110,1716281445984,-500.0,0.00034104,6]
[327651111,1716281445996,-500.0,0.00034104,6]
[327651112,1716281446007,-500.0,0.00034104,6]
[327651113,1716281446017,-500.0,0.00034104,6]
[327651114,1716281446028,-500.0,0.00034104,6]
[327651115,1716281446038,-543.73880237,0.00034104,6]
[327651116,1716281446048,-500.0,0.00034104,6]
[327651117,1716281446058,-500.0,0.00034104,6]
[327651118,1716281446068,-506.46067836,0.00034104,6]
[327651119,1716281446078,-519.30906488,0.00034104,6]
[327651120,1716281446088,-500.0,0.00034104,6]
[327651121,1716281446098,-500.0,0.00034104,6]
[327651122,1716281446108,-736.92324,0.00034104,2]
[327651123,1716281446119,-150.0,0.00034106,30]
[327651124,1716281446128,-499.999999,0.00034106,2]
[327651125,1716281446138,-6960.01946172,0.00034106,2]
[327651126,1716281446148,-413.0,0.00034106,120]
[327651127,1716281446158,-150.0,0.00034141,2]
[327651128,1716281446169,-1273.7,0.00034211,6]
[327651129,1716281446178,-549.16,0.00034212,6]
[327651130,1716281446189,-517.08,0.00034212,6]
[327651131,1716281446199,-241.66,0.00034213,6]
[327651132,1716281446210,-500.0,0.00034213,6]
[327651133,1716281446220,-500.0,0.00034213,6]
[327651134,1716281446230,-382.5,0.00034213,6]
[327651135,1716281446241,-500.0,0.00034213,6]
[327651136,1716281446252,-500.0,0.00034213,6]
[327651137,1716281446264,-500.0,0.00034213,6]
[327651138,1716281446275,-500.0,0.00034213,6]
[327651139,1716281446284,-500.0,0.00034213,6]
[327651140,1716281446294,-717.55,0.00034213,6]
[327651141,1716281446304,-500.0,0.00034213,6]
[327651142,1716281446314,-500.0,0.00034213,6]
[327651143,1716281446325,-337.82,0.00034213,6]
[327651144,1716281446335,-179.88140826,0.00034213,6]
[327651145,1716281446345,-36442.83,0.00034213,6]
[327651146,1716281446355,-207.79,0.00034214,6]
[327651147,1716281446365,-192.77,0.00034214,6]
[327651148,1716281446376,-500.0,0.00034214,6]
[327651149,1716281446386,-500.0,0.00034214,6]
[327651150,1716281446396,-353.23,0.00034214,6]
[327651151,1716281446406,-500.0,0.00034214,6]
[327651152,1716281446416,-500.0,0.00034214,6]
[327651153,1716281446426,-500.0,0.00034214,6]
[327651154,1716281446436,-500.0,0.00034214,6]
[327651155,1716281446445,-500.0,0.00034214,6]
[327651156,1716281446455,-500.0,0.00034214,6]
[327651157,1716281446465,-500.0,0.00034214,6]
[327651158,1716281446478,-500.0,0.00034214,6]
[327651159,1716281446488,-617.48,0.00034214,6]
[327651160,1716281446498,-500.0,0.00034214,6]
[327651161,1716281446507,-207.19,0.00034214,6]
[327651162,1716281446517,-500.0,0.00034214,6]
[327651163,1716281446528,-500.0,0.00034214,6]
[327651164,1716281446537,-331.05794955,0.00034229,2]
[327651165,1716281446547,-150.0,0.00034274,2]
[327651166,1716281446556,-150.0,0.00034291,120]
[327651167,1716281446567,-500.0,0.00034321,6]
[327651168,1716281446576,-500.0,0.00034321,6]
[327651169,1716281446586,-500.0,0.00034321,6]
[327651170,1716281446596,-500.0,0.00034321,6]
[327651171,1716281446606,-616.55,0.00034321,6]
[327651172,1716281446621,-554.43,0.00034321,6]
[327651173,1716281446632,-603.58,0.00034321,6]
[327651174,1716281446642,-546.53,0.00034321,6]
[327651175,1716281446652,-500.0,0.00034321,6]
[327651176,1716281446663,-500.0,0.00034321,6]
[327651177,1716281446674,-500.0,0.00034321,6]
[327651178,1716281446684,-500.0,0.00034321,6]
[327651179,1716281446696,-500.0,0.00034321,6]
[327651180,1716281446706,-1273.7,0.00034321,6]
[327651181,1716281446716,-500.0,0.00034322,6]
[327651182,1716281446726,-500.0,0.00034323,6]
[327651183,1716281446736,-500.0,0.00034323,6]
[327651184,1716281446747,-500.0,0.00034323,6]
[327651185,1716281446757,-500.0,0.00034323,6]
[327651186,1716281446769,-500.0,0.00034323,6]
[327651187,1716281446778,-500.0,0.00034323,6]
[327651188,1716281446788,-614.36,0.00034323,6]
[327651189,1716281446798,-500.0,0.00034323,6]
[327651190,1716281446807,-500.0,0.00034323,6]
[327651191,1716281446817,-500.0,0.00034323,6]
[327651192,1716281446827,-500.0,0.00034323,6]
[327651193,1716281446837,-717.55,0.00034323,6]
[327651194,1716281446847,-551.05,0.00034323,6]
[327651195,1716281446856,-500.0,0.00034323,6]
[327651196,1716281446866,-36442.83,0.00034323,6]
[327651197,1716281446876,-332.42,0.00034329,2]
[327651198,1716281446885,-153.33,0.00034329,2]
[327651199,1716281446895,-843.14,0.00034329,2]
[327651200,1716281446905,-302.71,0.00034329,2]
[327651201,1716281446915,-151.97,0.00034329,2]
[327651202,1716281446925,-382.46,0.00034329,2]
[327651203,1716281446935,-167.47819089,0.00034362,2]
[327651204,1716281446944,-166.36994161,0.00034366,7]
[327651205,1716281446954,-150.0,0.0003441,2]
[327651206,1716281446964,-150.0,0.00034419,2]
[327651207,1716281446975,-1273.7,0.0003443,6]
[327651208,1716281446986,-164.45478355,0.0003443,7]
[327651209,1716281446997,-500.0,0.00034431,6]
[327651210,1716281447007,-500.0,0.00034431,6]
[327651211,1716281447018,-450.02,0.00034431,6]
[327651212,1716281447029,-284.38,0.00034431,6]
[327651213,1716281447039,-500.0,0.00034431,6]
[327651214,1716281447048,-500.0,0.00034432,6]
[327651215,1716281447058,-500.0,0.00034432,6]
[327651216,1716281447067,-500.0,0.00034432,6]
[327651217,1716281447077,-500.0,0.00034432,6]
[327651218,1716281447087,-500.0,0.00034432,6]
[327651219,1716281447098,-717.55,0.00034432,6]
[327651220,1716281447107,-609.66,0.00034432,6]
[327651221,1716281447117,-36442.83,0.00034432,6]
[327651222,1716281447128,-500.0,0.00034433,6]
[327651223,1716281447137,-500.0,0.00034433,6]
[327651224,1716281447147,-500.0,0.00034433,6]
[327651225,1716281447157,-500.0,0.00034433,6]
[327651226,1716281447167,-500.0,0.00034433,6]
[327651227,1716281447177,-500.0,0.00034433,6]
[327651228,1716281447188,-166.063965,0.0003444,8]
[327651229,1716281447197,-155.67,0.00034475,2]
[327651230,1716281447207,-159.56,0.00034475,2]
[327651231,1716281447217,-150.0,0.00034481,2]
[327651232,1716281447227,-351.14969996,0.00034485,2]
[327651233,1716281447236,-188.11098371,0.0003449,2]
[327651234,1716281447247,-150.0,0.00034495,2]
[327651235,1716281447257,-154.16360863,0.00034497,2]
[327651236,1716281447267,-402416.42292979,0.000345,7]
[327651237,1716281447278,-331.05794952,0.00034517,2]
[327651238,1716281447288,-500.0,0.0003454,6]
[327651239,1716281447297,-520.74,0.0003454,6]
[327651240,1716281447306,-1273.7,0.0003454,6]
[327651241,1716281447316,-500.0,0.00034541,6]
[327651242,1716281447325,-500.0,0.00034542,6]
[327651243,1716281447335,-500.0,0.00034542,6]
[327651244,1716281447345,-500.0,0.00034542,6]
[327651245,1716281447355,-500.0,0.00034542,6]
[327651246,1716281447365,-500.0,0.00034542,6]
[327651247,1716281447375,-717.55,0.00034542,6]
[327651248,1716281447384,-36442.83,0.00034542,6]
[327651249,1716281447394,-500.0,0.00034543,6]
[327651250,1716281447403,-500.0,0.00034543,6]
[327651251,1716281447411,-500.0,0.00034543,6]
[327651252,1716281447420,-500.0,0.00034543,6]
[327651253,1716281447429,-500.0,0.00034543,6]
[327651254,1716281447438,-415.6,0.00034548,2]
[327651255,1716281447447,-415.6,0.00034548,2]
[327651256,1716281447456,-415.6,0.00034548,2]
[327651257,1716281447466,-150.0,0.00034548,10]
[327651258,1716281447476,-2572.574511,0.00034572,2]
[327651259,1716281447486,-150.0,0.00034586,2]
[327651260,1716281447495,-150.0,0.00034609,2]
[327651261,1716281447505,-150.0,0.00034634,2]
[327651262,1716281447515,-150.0,0.00034641,2]
[327651263,1716281447526,-1500.0,0.00034642,2]
[327651264,1716281447535,-500.0,0.0003465,6]
[327651265,1716281447544,-1273.7,0.0003465,6]
[327651266,1716281447554,-500.0,0.00034651,6]
[327651267,1716281447564,-500.0,0.00034651,6]
[327651268,1716281447574,-540.69,0.00034651,6]
[327651269,1716281447583,-500.0,0.00034651,6]
[327651270,1716281447593,-310.09,0.00034651,6]
[327651271,1716281447603,-717.55,0.00034651,6]
[327651272,1716281447614,-36442.83,0.00034651,6]
[327651273,1716281447628,-472.63,0.00034652,6]
[327651274,1716281447637,-562.15,0.00034652,6]
[327651275,1716281447648,-500.0,0.00034652,6]
[327651276,1716281447658,-500.0,0.00034652,6]
[327651277,1716281447668,-500.0,0.00034652,6]
[327651278,1716281447677,-150.0,0.00034658,2]
[327651279,1716281447687,-150.0,0.00034658,2]
[327651280,1716281447699,-150.0,0.00034658,2]
[327651281,1716281447708,-150.64,0.00034658,2]
[327651282,1716281447717,-150.0,0.00034665,2]
[327651283,1716281447727,-150.0,0.0003467,2]
[327651284,1716281447737,-150.0,0.00034685,2]
[327651285,1716281447747,-150.0,0.00034685,2]
[327651286,1716281447757,-150.0,0.00034685,2]